fUSD/lending_fUSD_20250417
["ID","MTS","AMOUNT","RATE_DAILY","PERIOD"]
[358275356,1744891838480,-500.0,0.00103757,120]
[358275357,1744891838489,-500.0,0.00103757,120]
[358275358,1744891838498,-153.2980332,0.00103757,120]
[358275359,1744891838510,-376.0213201,0.00103757,120]
[358275360,1744891838522,-823.3906467,0.00103757,120]
[358275361,1744891838530,-500.0,0.00103757,120]
[358275362,1744891838539,-632.32,0.00103757,120]
[358275363,1744891838548,-500.0,0.00103757,120]
[358275364,1744891838557,-73.34350565,0.00103757,120]
[358275365,1744891838568,-426.65649435,0.00103757,120]
[358275366,1744891838577,-302.27117524,0.00103757,120]
[358275367,1744891838592,-197.72882476,0.00103757,120]
[358275368,1744891838601,-500.0,0.00103757,120]
[358275369,1744891838612,-500.0,0.00103757,120]
[358275370,1744891838621,-271.30947322,0.00103757,120]
[358275371,1744891838633,-228.69052678,0.00103757,120]
[358275372,1744891838642,-500.0,0.00103757,120]
[358275373,1744891838656,-499.37691297,0.00103757,120]
[358275374,1744891838665,-610.37592482,0.00103757,120]
[358275375,1744891838677,-68.59407518,0.00103757,120]
[358275376,1744891838687,-500.13940421,0.00103757,120]
[358275377,1744891838698,-135.74059579,0.00103757,120]
[358275378,1744891838707,-128.13078275,0.00103757,120]
[358275379,1744891838718,-157.14921725,0.00103757,120]
[358275380,1744891838727,-500.0,0.00103757,120]
[358275381,1744891838736,-35.09360323,0.00103757,120]
[358275382,1744891838747,-464.90639677,0.00103757,120]
[358275383,1744891838756,-500.0,0.00103757,120]
[358275384,1744891838766,-500.0,0.00103757,120]
[358275385,1744891838775,-500.0,0.00103757,120]
[358275386,1744891838784,-500.0,0.00103757,120]
[358275387,1744891838794,-500.0,0.00103757,120]
[358275388,1744891838804,-774.58,0.00103757,120]
[358275389,1744891838814,-342.48,0.00103757,120]
[358275390,1744891838824,-500.0,0.00103757,120]
[358275391,1744891838834,-500.0,0.00103757,120]
[358275392,1744891838844,-12228.80179827,0.00103757,120]
[358275393,1744891838855,-469.81820173,0.00103757,120]
[358275394,1744891838865,-500.0,0.00103757,30]
[358275395,1744891838874,-500.0,0.00103757,120]
[358275396,1744891838883,-16.05134012,0.00103757,120]
[358275397,1744891838897,-483.94865988,0.00103757,120]
[358275398,1744891838907,-500.0,0.00103757,120]
[358275399,1744891838929,-500.0,0.00103757,120]
[358275400,1744891838944,-964.05,0.00103816,120]
[358275401,1744891838954,-183.66131012,0.00104798,120]
[358275402,1744891838965,-50.14868988,0.00104798,120]
[358275403,1744891838973,-500.0,0.00107397,2]
[358275404,1744891838982,-154.01,0.00107825,2]
[358275405,1744891838991,-4211.73261932,0.00108,120]
[358275406,1744891839772,-1115.26738068,0.00108,120]
[358275407,1744891839782,-964.05,0.00109007,120]
[358275408,1744891839791,-500.0,0.00109578,120]
[358275409,1744891839801,-544.28110448,0.00109578,120]
[358275410,1744891839810,-500.0,0.00109589,120]
[358275411,1744891839822,-233.81,0.00109689,120]
[358275412,1744891839831,-250.0,0.00110105,120]
[358275413,1744891839841,-154.01,0.00110513,2]
[358275414,1744891839851,-1000.0,0.00110774,120]
[358275415,1744891839860,-10035.0,0.00111594,100]
[358275416,1744891839870,-449.2096,0.00111863,120]
[358275417,1744891839879,-1860.18,0.00111953,30]
[358275418,1744891839889,-500.0,0.00111962,120]
[358275419,1744891839898,-22725.18684729,0.00111963,120]
[358275420,1744891839908,-26939.44250577,0.00111963,120]
[358275421,1744891839917,-151.0,0.00111963,120]
[358275422,1744891839926,-151.0,0.00111963,120]
[358275423,1744891839936,-151.0,0.00111963,120]
[358275424,1744891839945,-215.483836,0.00111963,120]
[358275425,1744891839955,-215.483836,0.00111963,120]
[358275426,1744891839965,-430.356198,0.00111963,120]
[358275427,1744891839974,-430.356198,0.00111963,120]
[358275428,1744891839984,-500.0,0.00111976,120]
[358275429,1744891839993,-500.0,0.00111976,120]
[358275430,1744891840003,-500.0,0.00111976,120]
[358275431,1744891840012,-551.98846349,0.00111976,120]
[358275432,1744891840022,-500.0,0.00111976,120]
[358275433,1744891840031,-500.0,0.00111976,120]
[358275434,1744891840041,-500.0,0.00111976,120]
[358275435,1744891840051,-500.0,0.00111976,120]
[358275436,1744891840060,-500.0,0.00111976,120]
[358275437,1744891840070,-500.0,0.00111976,120]
[358275438,1744891840082,-500.0,0.00111976,120]
[358275439,1744891840092,-690.25,0.00111976,120]
[358275440,1744891840102,-500.0,0.00111976,120]
[358275441,1744891840111,-500.0,0.00111976,120]
[358275442,1744891840120,-197.83,0.00111976,120]
[358275443,1744891840130,-518.29024968,0.00111976,120]
[358275444,1744891840139,-500.0,0.00111976,120]
[358275445,1744891840148,-502.62,0.00111976,120]
[358275446,1744891840158,-500.0,0.00111976,120]
[358275447,1744891840167,-539.72,0.00111976,120]
[358275448,1744891840177,-353.2,0.00111976,120]
[358275449,1744891840187,-234.51744042,0.00111976,120]
[358275450,1744891840196,-500.0,0.00111976,120]
[358275451,1744891840205,-899.89,0.00111976,120]
[358275452,1744891840215,-500.0,0.00111976,120]
[358275453,1744891840225,-347.59109091,0.00111976,120]
[358275454,1744891840234,-500.0,0.00111976,120]
[358275455,1744891840243,-537.87,0.00111976,120]
[358275456,1744891840252,-710.63,0.00111976,120]
[358275457,1744891840262,-514.57743293,0.00111976,120]
[358275458,1744891840272,-500.0,0.00111976,120]
[358275459,1744891840282,-500.0,0.00111976,120]
[358275460,1744891840292,-2098.72,0.00111976,120]
[358275461,1744891840301,-519.79,0.00111976,120]
[358275462,1744891840311,-16975.05,0.00111976,7]
[358275463,1744891840321,-500.0,0.00111976,120]
[358275464,1744891840330,-500.0,0.00111976,120]
[358275465,1744891840340,-709.02,0.00111976,120]
[358275466,1744891840350,-500.0,0.00111976,120]
[358275467,1744891840359,-500.0,0.00111976,120]
[358275468,1744891840369,-1352.71,0.00111976,120]
[358275469,1744891840378,-500.0,0.00111976,120]
[358275470,1744891840386,-500.0,0.00111976,120]
[358275471,1744891840395,-500.0,0.00111976,120]
[358275472,1744891840405,-500.0,0.00111976,120]
[358275473,1744891840415,-500.0,0.00111976,120]
[358275474,1744891840425,-500.0,0.00111976,120]
[358275475,1744891840434,-204.02,0.00111976,120]
[358275476,1744891840444,-500.0,0.00111976,120]
[358275477,1744891840454,-678.97,0.00111976,120]
[358275478,1744891840464,-635.88,0.00111976,120]
[358275479,1744891840474,-500.0,0.00111976,120]
[358275480,1744891840484,-500.0,0.00111976,120]
[358275481,1744891840493,-500.0,0.00111976,120]
[358275482,1744891840503,-500.0,0.00111976,120]
[358275483,1744891840513,-500.0,0.00111976,120]
[358275484,1744891840526,-366.07,0.00111976,120]
[358275485,1744891840535,-209.76,0.00111976,120]
[358275486,1744891840545,-774.58,0.00111976,120]
[358275487,1744891840554,-532.56,0.00111976,120]
[358275488,1744891840563,-371.29,0.00111976,120]
[358275489,1744891840573,-12698.62,0.00111976,120]
[358275490,1744891840582,-500.0,0.00111976,30]
[358275491,1744891840591,-500.0,0.00111976,120]
[358275492,1744891840601,-500.0,0.00111976,120]
[358275493,1744891840612,-500.0,0.00111976,120]
[358275494,1744891840621,-500.0,0.00111976,120]
[358275495,1744891840631,-154.01,0.00113202,2]
[358275496,1744891840640,-964.05,0.00114198,120]
[358275497,1744891840649,-233.81,0.00114579,120]
[358275498,1744891840659,-667.93,0.00115148,30]
[358275499,1744891840668,-500.0,0.00115284,120]
[358275500,1744891840677,-449.35,0.00115284,120]
[358275501,1744891840686,-539.82,0.00115284,120]
[358275502,1744891840695,-304.13,0.00115284,120]
[358275503,1744891840704,-168.32411572,0.00115284,120]
[358275504,1744891840714,-500.0,0.00115284,120]
[358275505,1744891840723,-500.0,0.00115284,120]
[358275506,1744891840732,-500.0,0.00115284,120]
[358275507,1744891840741,-706.29,0.00115284,2]
[358275508,1744891840754,-511.54,0.00115284,120]
[358275509,1744891840763,-151.0,0.00115285,120]
[358275510,1744891840771,-152.82122,0.00115285,90]
[358275511,1744891840779,-151.0,0.00115285,120]
[358275512,1744891840788,-151.0,0.00115285,120]
[358275513,1744891840801,-151.0,0.00115285,120]
[358275514,1744891840818,-500.0,0.00115307,120]
[358275515,1744891840828,-500.0,0.00115307,120]
[358275516,1744891840838,-500.0,0.00115307,120]
[358275517,1744891840847,-500.0,0.00115307,120]
[358275518,1744891840857,-2142.56,0.00115307,120]
[358275519,1744891840867,-500.0,0.00115307,120]
[358275520,1744891840876,-500.0,0.00115307,120]
[358275521,1744891840886,-500.0,0.00115307,120]
[358275522,1744891840896,-594.91,0.00115307,120]
[358275523,1744891840905,-500.0,0.00115307,120]
[358275524,1744891840917,-500.0,0.00115307,120]
[358275525,1744891840926,-500.0,0.00115307,120]
[358275526,1744891840935,-500.0,0.00115307,120]
[358275527,1744891840944,-500.0,0.00115307,120]
[358275528,1744891840954,-500.0,0.00115307,120]
[358275529,1744891840963,-500.0,0.00115307,120]
[358275530,1744891840972,-500.0,0.00115307,120]
[358275531,1744891840983,-500.0,0.00115307,120]
[358275532,1744891840994,-517.46401439,0.00115307,120]
[358275533,1744891841003,-622.26,0.00115307,120]
[358275534,1744891841013,-500.0,0.00115307,120]
[358275535,1744891841022,-500.0,0.00115307,120]
[358275536,1744891841032,-500.0,0.00115307,120]
[358275537,1744891841041,-1300.79,0.00115307,120]
[358275538,1744891841050,-500.0,0.00115307,120]
[358275539,1744891841059,-500.0,0.00115307,30]
[358275540,1744891841068,-500.0,0.00115307,120]
[358275541,1744891841078,-502.44848701,0.00115307,120]
[358275542,1744891841087,-500.0,0.00115307,120]
[358275543,1744891841096,-500.0,0.00115307,120]
[358275544,1744891841106,-500.0,0.00115307,120]
[358275545,1744891841115,-154.01,0.0011589,2]
[358275546,1744891841125,-154.01,0.00118578,2]
[358275547,1744891841134,-1500.0,0.001189,120]
[358275548,1744891841143,-151.0,0.00118979,120]
[358275549,1744891841152,-151.0,0.00118979,120]
[358275550,1744891841162,-151.0,0.00118979,120]
[358275551,1744891841171,-215.483836,0.00118979,120]
[358275552,1744891841179,-215.483836,0.00118979,120]
[358275553,1744891841187,-430.356198,0.00118979,120]
[358275554,1744891841196,-430.356198,0.00118979,120]
[358275555,1744891841206,-663.84,0.00118989,120]
[358275556,1744891841215,-500.0,0.00119,120]
[358275557,1744891841223,-1875.2193,0.00119,120]
[358275558,1744891841233,-3257.9572428,0.00119288,15]
[358275559,1744891841241,-964.05,0.00119388,120]
[358275560,1744891841250,-233.81,0.00119469,120]
[358275561,1744891841258,-166.48550264,0.00120095,28]
[358275562,1744891841267,-500.0,0.00120181,120]
[358275563,1744891841277,-500.0,0.00120195,120]
[358275564,1744891841286,-498.26,0.00120195,120]
[358275565,1744891841295,-500.0,0.00120195,120]
[358275566,1744891841305,-388.98,0.00120195,120]
[358275567,1744891841315,-500.0,0.00120195,120]
[358275568,1744891841324,-500.0,0.00120195,120]
[358275569,1744891841438,-500.0,0.00120195,120]
[358275570,1744891841448,-500.0,0.00120195,120]
[358275571,1744891841457,-500.0,0.00120195,120]
[358275572,1744891841467,-500.0,0.00120195,120]
[358275573,1744891841476,-690.25,0.00120195,120]
[358275574,1744891841486,-500.0,0.00120195,120]
[358275575,1744891841496,-500.0,0.00120195,120]
[358275576,1744891841507,-502.62,0.00120195,120]
[358275577,1744891841521,-500.0,0.00120195,120]
[358275578,1744891841530,-531.45826472,0.00120195,120]
[358275579,1744891841540,-899.89,0.00120195,120]
[358275580,1744891841549,-500.0,0.00120195,120]
[358275581,1744891841560,-500.0,0.00120195,120]
[358275582,1744891841569,-537.87,0.00120195,120]
[358275583,1744891841578,-710.63,0.00120195,120]
[358275584,1744891841587,-500.0,0.00120195,120]
[358275585,1744891841597,-500.0,0.00120195,120]
[358275586,1744891841608,-2098.72,0.00120195,120]
[358275587,1744891841618,-16975.05,0.00120195,7]
[358275588,1744891841627,-529.26,0.00120195,120]
[358275589,1744891841636,-198.61,0.00120195,120]
[358275590,1744891841645,-709.02,0.00120195,120]
[358275591,1744891841654,-500.0,0.00120195,120]
[358275592,1744891841665,-566.70350596,0.00120195,120]
[358275593,1744891841675,-1352.71,0.00120195,120]
[358275594,1744891841684,-500.0,0.00120195,120]
[358275595,1744891841694,-500.0,0.00120195,120]
[358275596,1744891841704,-500.0,0.00120195,120]
[358275597,1744891841713,-500.0,0.00120195,120]
[358275598,1744891841722,-500.0,0.00120195,120]
[358275599,1744891841732,-500.0,0.00120195,120]
[358275600,1744891841741,-500.0,0.00120195,120]
[358275601,1744891841751,-678.97,0.00120195,120]
[358275602,1744891841761,-635.88,0.00120195,120]
[358275603,1744891841770,-500.0,0.00120195,120]
[358275604,1744891841779,-500.0,0.00120195,120]
[358275605,1744891841789,-500.0,0.00120195,120]
[358275606,1744891841798,-326.26,0.00120195,120]
[358275607,1744891841808,-500.0,0.00120195,120]
[358275608,1744891841818,-774.58,0.00120195,120]
[358275609,1744891841828,-12698.62,0.00120195,120]
[358275610,1744891841838,-500.0,0.00120195,30]
[358275611,1744891841847,-500.0,0.00120195,120]
[358275612,1744891841857,-495.8,0.00120195,120]
[358275613,1744891841867,-500.0,0.00120195,120]
[358275614,1744891841876,-500.0,0.00120195,120]
[358275615,1744891841886,-1000.0,0.00120844,120]
[358275616,1744891841895,-154.01,0.00121267,2]
[358275617,1744891841906,-1500.0,0.001216,120]
[358275618,1744891841915,-500.0,0.00123503,120]
[358275619,1744891841925,-562.0,0.00123503,120]
[358275620,1744891841935,-500.0,0.00123503,120]
[358275621,1744891841945,-500.0,0.00123503,120]
[358275622,1744891841954,-706.29,0.00123503,2]
[358275623,1744891841964,-511.54,0.00123503,120]
[358275624,1744891841974,-500.0,0.00123526,120]
[358275625,1744891841984,-500.0,0.00123526,120]
[358275626,1744891841994,-500.0,0.00123526,120]
[358275627,1744891842004,-2142.56,0.00123526,120]
[358275628,1744891842013,-500.0,0.00123526,120]
[358275629,1744891842023,-500.0,0.00123526,120]
[358275630,1744891842033,-419.28,0.00123526,120]
[358275631,1744891842043,-500.0,0.00123526,120]
[358275632,1744891842052,-500.0,0.00123526,120]
[358275633,1744891842062,-359.81,0.00123526,120]
[358275634,1744891842071,-286.27,0.00123526,120]
[358275635,1744891842081,-500.0,0.00123526,120]
[358275636,1744891842090,-536.95,0.00123526,120]
[358275637,1744891842100,-500.0,0.00123526,120]
[358275638,1744891842110,-561.94,0.00123526,120]
[358275639,1744891842119,-622.26,0.00123526,120]
[358275640,1744891842129,-500.0,0.00123526,120]
[358275641,1744891842138,-500.0,0.00123526,120]
[358275642,1744891842148,-1300.79,0.00123526,120]
[358275643,1744891842158,-500.0,0.00123526,120]
[358275644,1744891842166,-500.0,0.00123526,30]
[358275645,1744891842176,-500.0,0.00123526,120]
[358275646,1744891842185,-500.0,0.00123526,120]
[358275647,1744891842196,-500.0,0.00123526,120]
[358275648,1744891842206,-154.01,0.00123955,2]
[358275649,1744891842216,-233.81,0.0012436,120]
[358275650,1744891842226,-964.05,0.00124579,120]
[358275651,1744891842235,-500.0,0.00125,60]
[358275652,1744891842244,-998.19392596,0.00125656,96]
[358275653,1744891842254,-154.01,0.00126643,2]
[358275654,1744891842263,-167.125432,0.00127308,120]
[358275655,1744891842273,-293.26473,0.00127308,120]
[358275656,1744891842283,-161.458064,0.00127308,120]
[358275657,1744891842292,-286.062366,0.00127308,120]
[358275658,1744891842302,-300.493624,0.00127318,120]
[358275659,1744891842313,-151.0,0.00127617,120]
[358275660,1744891842322,-151.0,0.00127617,120]
[358275661,1744891842332,-151.0,0.00127617,120]
[358275662,1744891842342,-215.483836,0.00127617,120]
[358275663,1744891842352,-215.483836,0.00127617,120]
[358275664,1744891842361,-430.356198,0.00127617,120]
[358275665,1744891842370,-430.356198,0.00127617,120]
[358275666,1744891842381,-500.0,0.00127626,120]
[358275667,1744891842391,-150.0,0.00127627,120]
[358275668,1744891842400,-500.0,0.00127627,120]
[358275669,1744891842411,-500.0,0.00127627,120]
[358275670,1744891842421,-150.0,0.00127627,120]
[358275672,1744891842431,-150.0,0.00127627,120]
[358275673,1744891842440,-150.0,0.00127627,120]
[358275674,1744891842449,-150.0,0.00127627,120]
[358275676,1744891842459,-200.0,0.00127627,120]
[358275678,1744891842468,-150.0,0.00127627,120]
[358275680,1744891842478,-150.0,0.00127627,120]
[358275681,1744891842487,-150.0,0.00127627,120]
[358275682,1744891842496,-150.0,0.00127627,120]
[358275683,1744891842506,-150.0,0.00127627,120]
[358275684,1744891842515,-250.0,0.00127627,120]
[358275685,1744891842527,-150.0,0.00127627,120]
[358275686,1744891842536,-150.0,0.00127627,120]
[358275687,1744891842546,-200.0,0.00127627,120]
[358275688,1744891842555,-155.3939815,0.00127627,120]
[358275689,1744891842565,-199.38141135,0.00127627,120]
[358275690,1744891842574,-194.75129471,0.00127627,120]
[358275691,1744891842583,-150.0,0.00127627,120]
[358275692,1744891842592,-150.0,0.00127627,120]
[358275693,1744891842602,-150.0,0.00127627,120]
[358275694,1744891842611,-200.0,0.00127627,120]
[358275695,1744891842620,-500.0,0.00127627,120]
[358275696,1744891842629,-500.0,0.00127627,120]
[358275697,1744891842638,-500.0,0.00127627,120]
[358275698,1744891842647,-500.0,0.00127627,120]
[358275699,1744891842657,-500.0,0.00127627,120]
[358275700,1744891842666,-500.0,0.00127627,120]
[358275701,1744891842676,-500.0,0.00127627,120]
[358275702,1744891842685,-500.0,0.00127627,120]
[358275703,1744891842696,-2000.0,0.00127627,120]
[358275704,1744891842705,-500.0,0.00127627,120]
[358275705,1744891842715,-500.0,0.00127627,120]
[358275706,1744891842725,-500.0,0.00127627,120]
[358275707,1744891842734,-500.0,0.00127627,120]
[358275708,1744891842743,-457.35704287,0.00127627,120]
[358275709,1744891842753,-500.0,0.00127627,120]
[358275710,1744891842762,-500.0,0.00127627,120]
[358275711,1744891842774,-500.82,0.00127627,120]
[358275712,1744891842783,-500.0,0.00127627,120]
[358275713,1744891842792,-500.0,0.00127627,120]
[358275714,1744891842802,-578.92,0.00127627,120]
[358275715,1744891842811,-546.37494153,0.00127627,120]
[358275716,1744891842825,-500.0,0.00127627,120]
[358275717,1744891842834,-500.0,0.00127627,120]
[358275718,1744891842844,-500.0,0.00127627,120]
[358275719,1744891842853,-500.0,0.00127627,120]
[358275720,1744891842862,-500.0,0.00127627,120]
[358275721,1744891842872,-500.0,0.00127627,120]
[358275722,1744891842882,-151.0,0.00127627,120]
[358275723,1744891842891,-151.0,0.00127627,120]
[358275724,1744891842901,-151.0,0.00127627,120]
[358275725,1744891842912,-500.0,0.00127627,120]
[358275726,1744891842921,-151.0,0.00127627,2]
[358275727,1744891842931,-500.0,0.00127627,120]
[358275728,1744891842941,-151.0,0.00127627,120]
[358275729,1744891842950,-500.0,0.00127627,120]
[358275730,1744891842960,-500.0,0.00127627,120]
[358275731,1744891842969,-500.0,0.00127627,120]
[358275732,1744891842979,-500.0,0.00127627,120]
[358275733,1744891842988,-500.0,0.00127627,120]
[358275734,1744891842998,-500.0,0.00127627,120]
[358275735,1744891843008,-500.0,0.00127627,120]
[358275736,1744891843017,-637.48,0.00127627,120]
[358275737,1744891843027,-500.0,0.00127627,120]
[358275738,1744891843037,-500.0,0.00127627,120]
[358275739,1744891843047,-500.0,0.00127627,120]
[358275740,1744891843057,-500.0,0.00127627,120]
[358275741,1744891843067,-500.0,0.00127627,120]
[358275742,1744891843077,-500.0,0.00127627,120]
[358275743,1744891843086,-500.0,0.00127627,120]
[358275744,1744891843097,-500.0,0.00127627,120]
[358275745,1744891843106,-500.0,0.00127627,120]
[358275746,1744891843115,-500.0,0.00127627,120]
[358275747,1744891843126,-500.0,0.00127627,120]
[358275748,1744891843135,-500.0,0.00127627,120]
[358275749,1744891843145,-500.0,0.00127627,120]
[358275750,1744891843154,-500.0,0.00127627,120]
[358275751,1744891843167,-500.0,0.00127627,120]
[358275752,1744891843177,-500.0,0.00127627,120]
[358275753,1744891843186,-500.0,0.00127627,120]
[358275754,1744891843196,-500.0,0.00127627,120]
[358275755,1744891843205,-500.0,0.00127627,120]
[358275756,1744891843214,-500.0,0.00127627,120]
[358275757,1744891843224,-500.0,0.00127627,120]
[358275758,1744891843233,-500.0,0.00127627,120]
[358275759,1744891843242,-500.0,0.00127627,120]
[358275760,1744891843251,-238.19,0.00127627,120]
[358275761,1744891843259,-151.0,0.00127628,120]
[358275762,1744891843267,-151.0,0.00127628,120]
[358275763,1744891843275,-151.0,0.00127628,120]
[358275764,1744891843284,-1165.9618208,0.00128008,120]
[358275765,1744891843293,-500.0,0.00128401,120]
[358275766,1744891843302,-12896.973778,0.00128404,9]
[358275767,1744891843311,-500.0,0.00128414,120]
[358275768,1744891843320,-500.0,0.00128414,120]
[358275769,1744891843330,-500.0,0.00128414,120]
[358275770,1744891843339,-500.0,0.00128414,120]
[358275771,1744891843349,-500.0,0.00128414,120]
[358275772,1744891843358,-500.0,0.00128414,120]
[358275773,1744891843368,-500.0,0.00128414,120]
[358275774,1744891843377,-500.0,0.00128414,120]
[358275775,1744891843387,-690.25,0.00128414,120]
[358275776,1744891843396,-500.0,0.00128414,120]
[358275777,1744891843404,-500.0,0.00128414,120]
[358275778,1744891843415,-502.62,0.00128414,120]
[358275779,1744891843426,-500.0,0.00128414,120]
[358275780,1744891843435,-899.89,0.00128414,120]
[358275781,1744891843445,-500.0,0.00128414,120]
[358275782,1744891843464,-500.0,0.00128414,120]
[358275783,1744891843473,-537.87,0.00128414,120]
[358275785,1744891843483,-710.63,0.00128414,120]
[358275786,1744891843492,-214.90375348,0.00128414,120]
[358275787,1744891843502,-500.0,0.00128414,120]
[358275788,1744891843517,-2098.72,0.00128414,120]
[358275790,1744891843526,-16975.05,0.00128414,7]
[358275792,1744891843534,-709.02,0.00128414,120]
[358275794,1744891843545,-501.56861975,0.00128414,120]
[358275795,1744891843555,-1352.71,0.00128414,120]
[358275797,1744891843564,-500.0,0.00128414,120]
[358275798,1744891843574,-500.0,0.00128414,120]
[358275799,1744891843583,-500.0,0.00128414,120]
[358275800,1744891843593,-500.0,0.00128414,120]
[358275801,1744891843603,-500.0,0.00128414,120]
[358275802,1744891843612,-500.0,0.00128414,120]
[358275803,1744891843622,-500.0,0.00128414,120]
[358275804,1744891843631,-678.97,0.00128414,120]
[358275805,1744891843641,-635.88,0.00128414,120]
[358275806,1744891843651,-500.0,0.00128414,120]
[358275807,1744891843661,-544.82655984,0.00128414,120]
[358275808,1744891843671,-500.0,0.00128414,120]
[358275809,1744891843681,-500.0,0.00128414,120]
[358275810,1744891843690,-774.58,0.00128414,120]
[358275811,1744891843699,-12698.62,0.00128414,120]
[358275812,1744891843708,-500.0,0.00128414,30]
[358275813,1744891843717,-500.0,0.00128414,120]
[358275814,1744891843727,-500.0,0.00128414,120]
[358275815,1744891843861,-500.0,0.00128414,120]
[358275816,1744891843872,-233.81,0.0012925,120]
[358275817,1744891843881,-154.01,0.00129332,2]
[358275818,1744891843890,-632.73,0.00131723,120]
[358275819,1744891843900,-500.0,0.00131723,120]
[358275820,1744891843909,-706.29,0.00131723,2]
[358275821,1744891843919,-511.54,0.00131723,120]
[358275822,1744891843928,-6448.486889,0.00131726,9]
[358275823,1744891843937,-373.09,0.00131746,120]
[358275824,1744891843947,-500.0,0.00131746,120]
[358275825,1744891843956,-500.0,0.00131746,120]
[358275826,1744891843965,-2142.56,0.00131746,120]
[358275827,1744891843974,-500.0,0.00131746,120]
[358275828,1744891843983,-254.46,0.00131746,120]
[358275829,1744891843993,-500.0,0.00131746,120]
[358275830,1744891844002,-500.0,0.00131746,120]
[358275831,1744891844011,-500.0,0.00131746,120]
[358275832,1744891844021,-622.26,0.00131746,120]
[358275833,1744891844030,-500.0,0.00131746,120]
[358275834,1744891844040,-1300.79,0.00131746,120]
[358275835,1744891844049,-500.0,0.00131746,120]
[358275836,1744891844058,-500.0,0.00131746,120]
[358275837,1744891844068,-500.0,0.00131746,120]
[358275838,1744891844077,-500.0,0.00131746,120]
[358275839,1744891844087,-154.01,0.0013202,2]
[358275840,1744891844096,-233.81,0.00134141,120]
[358275841,1744891844106,-154.01,0.00134708,2]
[358275842,1744891844116,-6448.486889,0.00135517,13]
[358275843,1744891844125,-663.84,0.00135526,120]
[358275844,1744891844136,-6448.486889,0.00135778,13]
[358275845,1744891844146,-151.0,0.00135788,120]
[358275846,1744891844156,-6448.486889,0.00135817,14]
[358275847,1744891844167,-12896.973778,0.00135826,14]
[358275848,1744891844176,-151.0,0.00135827,120]
[358275849,1744891844186,-151.0,0.00135827,120]
[358275850,1744891844196,-215.483836,0.00135827,120]
[358275851,1744891844205,-215.483836,0.00135827,120]
[358275852,1744891844214,-430.356198,0.00135827,120]
[358275853,1744891844223,-430.356198,0.00135827,120]
[358275854,1744891844232,-12896.973778,0.00135836,14]
[358275855,1744891844241,-438.07976069,0.00135846,120]
[358275856,1744891844251,-500.0,0.00135846,120]
[358275857,1744891844260,-500.0,0.00135846,120]
[358275858,1744891844269,-413.76,0.00135846,120]
[358275859,1744891844278,-500.0,0.00135846,120]
[358275860,1744891844287,-500.0,0.00135846,120]
[358275861,1744891844296,-500.0,0.00135846,120]
[358275862,1744891844305,-500.0,0.00135846,120]
[358275863,1744891844314,-500.0,0.00135846,120]
[358275864,1744891844322,-500.0,0.00135846,120]